Workbook

Sheet Data
A1: Prof. Milan Stanko (NTNU)
A2: Rp | B2: [Sm3/Sm3] | C2: 300
A4: COLUMN | B4: 4 | C4: 6 | D4: 3 | E4: 5 | F4: 2
A5: p | B5: Rs | C5: viscg | D5: Bg | E5: Visco | F5: Bo | G5: krg/kro | H5: kro | I5: kro/(visco*Bo) | J5: So
A6: [bara] | B6: [Sm3/Sm3] | C6: [cp] | D6: [m3/Sm3] | E6: [cp] | F6: [m3/Sm3] | G6: [-] | H6: [-] | I6: [1/cp] | J6: [-]
A7: 1.01325
A8: 5
A9: 50
A10: 100
A11: 150
A12: 200
A13: 250
A14: 300
A15: 330
A16: 360
A17: 382.91
A19: IPR
A20: permeability, k | B20: [md] | C20: 100
A21: layer height, h | B21: [m] | C21: 50
A22: external res radius, re | B22: [m] | C22: 500
A23: wellbore radius, rw | B23: [m] | C23: 0.15
A24: Skin, s | B24: [-] | C24: 0
A25: pR | B25: [bara] | C25: 382
A28: pwf | B28: m(p) | C28: qo | D28: qo - fet | E28: qo -Vogel
A29: [bara] | B29: [bara/cp] | C29: [Sm3/d] | D29: [Sm3/d] | E29: [Sm3/d]
A30: =C25 -> 382
A31: 300
A32: 250
A33: 200
A34: 150
A35: 100
A36: 50
A37: 5
A38: 1.01325

Sheet rel_perm
A1: Connate water saturation, Swc | B1: [-] | C1: 0.3
A2: Residual oil saturation to gas, [Sorg] | B2: [-] | C2: 0
A4: Sg | B4: kro | C4: krg | D4: krg/kro | E4: kro | F4: So
A5: 0 | B5: 1 | C5: 0
A6: 0.01489 | B6: 0.89805 | C6: 0.001289
A7: 0.02979 | B7: 0.80459 | C7: 0.003219
A8: 0.04468 | B8: 0.71907 | C8: 0.005872
A9: 0.05957 | B9: 0.64099 | C9: 0.009319
A10: 0.07447 | B10: 0.56984 | C10: 0.013622
A11: 0.08936 | B11: 0.50516 | C11: 0.018835
A12: 0.10426 | B12: 0.44649 | C12: 0.025004
A13: 0.11915 | B13: 0.3934 | C13: 0.032167
A14: 0.13404 | B14: 0.34548 | C14: 0.040353
A15: 0.14894 | B15: 0.30236 | C15: 0.049587
A16: 0.16383 | B16: 0.26365 | C16: 0.059886
A17: 0.17872 | B17: 0.22901 | C17: 0.071258
A18: 0.19362 | B18: 0.19811 | C18: 0.08371
A19: 0.20851 | B19: 0.17064 | C19: 0.097241
A20: 0.2234 | B20: 0.1463 | C20: 0.11184
A21: 0.2383 | B21: 0.12483 | C21: 0.12751
A22: 0.25319 | B22: 0.10595 | C22: 0.14422
A23: 0.26809 | B23: 0.089433 | C23: 0.16197
A24: 0.28298 | B24: 0.075041 | C24: 0.18072
A25: 0.29787 | B25: 0.062565 | C25: 0.20045
A26: 0.31277 | B26: 0.051806 | C26: 0.22115
A27: 0.32766 | B27: 0.04258 | C27: 0.24276
A28: 0.34255 | B28: 0.034719 | C28: 0.26527
A29: 0.35745 | B29: 0.028064 | C29: 0.28865
A30: 0.37234 | B30: 0.022471 | C30: 0.31285
A31: 0.38723 | B31: 0.017808 | C31: 0.33785
A32: 0.40213 | B32: 0.013953 | C32: 0.3636
A33: 0.41702 | B33: 0.010796 | C33: 0.39008
A34: 0.43191 | B34: 0.008239 | C34: 0.41725
A35: 0.44681 | B35: 0.006191 | C35: 0.44508
A36: 0.4617 | B36: 0.004572 | C36: 0.47353
A37: 0.4766 | B37: 0.003311 | C37: 0.50259
A38: 0.49149 | B38: 0.002345 | C38: 0.53221
A39: 0.50638 | B39: 0.001619 | C39: 0.56237
A40: 0.52128 | B40: 0.001085 | C40: 0.59306
A41: 0.53617 | B41: 0.000702 | C41: 0.62426
A42: 0.55106 | B42: 0.000436 | C42: 0.65594
A43: 0.56596 | B43: 0.0002574 | C43: 0.6881
A44: 0.58085 | B44: 0.0001429 | C44: 0.72074
A45: 0.59574 | B45: 7.326e-05 | C45: 0.75385
A46: 0.61064 | B46: 3.391e-05 | C46: 0.78743
A47: 0.62553 | B47: 1.363e-05 | C47: 0.8215
A48: 0.64043 | B48: 4.466e-06 | C48: 0.85608
A49: 0.65532 | B49: 1.06e-06 | C49: 0.89118
A50: 0.67021 | B50: 1.395e-07 | C50: 0.92685
A51: 0.68511 | B51: 4.36e-09 | C51: 0.9631
A52: 0.7 | B52: 1e-10 | C52: 1

Sheet PVT
A1: p | B1: Bo | C1: Bg | D1: Rs | E1: muo | F1: mug
A2: [bara] | B2: [m^3/Sm^3] | C2: [m^3/Sm^3] | D2: [Sm^3/Sm^3] | E2: [cp] | F2: [cp]
A3: 1 | B3: =0.000005*A3^2 + 0.000005*A3 + 1.1513 -> 1.15131 | C3: =-0.000000000708*A3^3+ 0.000000652*A3^2 - 0.000205*A3 + 0.0268 -> 0.02659565129 | D3: =0.00000339*A3^3- 0.000723*A3^2 + 0.539*A3 -> 0.53828039 | E3: =0.00000675*A3^2 - 0.00576*A3 + 1.41 -> 1.40424675 | F3: =0.0000000754*A3^2+ 0.0000362*A3 + 0.0112 -> 0.0112362754
A4: 30 | B4: =0.000005*A4^2 + 0.000005*A4 + 1.1513 -> 1.15595 | C4: =-0.000000000708*A4^3+ 0.000000652*A4^2 - 0.000205*A4 + 0.0268 -> 0.021217684 | D4: =0.00000339*A4^3- 0.000723*A4^2 + 0.539*A4 -> 15.61083 | E4: =0.00000675*A4^2 - 0.00576*A4 + 1.41 -> 1.243275 | F4: =0.0000000754*A4^2+ 0.0000362*A4 + 0.0112 -> 0.01235386
A5: 40 | B5: =0.000005*A5^2 + 0.000005*A5 + 1.1513 -> 1.1595 | C5: =-0.000000000708*A5^3+ 0.000000652*A5^2 - 0.000205*A5 + 0.0268 -> 0.019597888 | D5: =0.00000339*A5^3- 0.000723*A5^2 + 0.539*A5 -> 20.62016 | E5: =0.00000675*A5^2 - 0.00576*A5 + 1.41 -> 1.1904 | F5: =0.0000000754*A5^2+ 0.0000362*A5 + 0.0112 -> 0.01276864
A6: 60 | B6: =0.000005*A6^2 + 0.000005*A6 + 1.1513 -> 1.1696 | C6: =-0.000000000708*A6^3+ 0.000000652*A6^2 - 0.000205*A6 + 0.0268 -> 0.016694272 | D6: =0.00000339*A6^3- 0.000723*A6^2 + 0.539*A6 -> 30.46944 | E6: =0.00000675*A6^2 - 0.00576*A6 + 1.41 -> 1.0887 | F6: =0.0000000754*A6^2+ 0.0000362*A6 + 0.0112 -> 0.01364344
A7: 97.54 | B7: 1.188 | C7: 0.012463 | D7: 47.5 | E7: 0.9244 | F7: 0.01569
A8: 132.01 | B8: 1.239 | C8: 0.009145 | D8: 66 | E8: 0.7611 | F8: 0.01721
A9: 166.49 | B9: 1.294 | C9: 0.007327 | D9: 85.9 | E9: 0.6274 | F9: 0.01914
A10: 200.96 | B10: 1.355 | C10: 0.006221 | D10: 107.8 | E10: 0.5181 | F10: 0.02142
A11: 235.44 | B11: 1.422 | C11: 0.005498 | D11: 132.2 | E11: 0.428 | F11: 0.02395
A12: 269.91 | B12: 1.499 | C12: 0.005001 | D12: 159.9 | E12: 0.3535 | F12: 0.02662
A13: 304.38 | B13: 1.589 | C13: 0.004644 | D13: 192 | E13: 0.2914 | F13: 0.02939
A14: 338.86 | B14: 1.696 | C14: 0.004382 | D14: 230.2 | E14: 0.2394 | F14: 0.03225
A15: 365.4 | B15: 1.795 | C15: 0.004226 | D15: 265.5 | E15: 0.2051 | F15: 0.03456
A16: 382.91 | B16: 1.872 | C16: 0.004139 | D16: 292.6 | E16: 0.1846 | F16: 0.03596
